bitfinex/quotes_ETHUSD_20260114
["timestamp","ask_amount","ask_price","bid_price","bid_amount"]
[1768386036039,0.09180629,3317.4,3316.9,4.40700705]
[1768386036658,0.09180629,3318.4,3317.0,0.99749559]
[1768386036815,0.09180629,3317.8,3317.0,0.99749559]
[1768386037150,0.09180629,3318.0,3317.0,0.99749559]
[1768386037356,0.09180629,3317.8,3317.0,0.99749559]
[1768386037653,0.09180629,3317.8,3316.9,10.20077855]
[1768386037654,0.09180629,3317.3,3316.9,4.17105201]
[1768386037819,0.09180629,3316.9,3316.5,1.41149559]
[1768386038016,0.09180629,3317.1,3316.5,1.41149559]
[1768386038221,0.09180629,3317.0,3316.5,1.41149559]
[1768386038541,0.09180629,3317.0,3316.6,7.02776755]
[1768386039054,0.002,3317.1,3316.6,7.02776755]
[1768386039252,0.09180629,3317.0,3316.6,7.02776755]
[1768386039749,0.002,3317.1,3316.6,7.02776755]
[1768386039919,0.002,3317.4,3316.7,0.99749559]
[1768386040122,0.002,3317.4,3316.9,0.99749559]
[1768386041022,0.09180629,3317.1,3316.9,0.99749559]
[1768386041341,0.09180629,3317.3,3316.9,0.99749559]
[1768386041740,0.09180629,3317.5,3316.9,0.99749559]
[1768386041920,1.15503569,3317.7,3316.9,0.99749559]
[1768386041921,0.09180629,3317.7,3316.9,0.99749559]
[1768386042247,0.09180629,3317.5,3317.0,3.01477238]
[1768386042451,0.09180629,3317.2,3317.0,3.01477238]
[1768386042655,0.09180629,3317.6,3317.0,6.02954476]
[1768386043025,0.09180629,3317.8,3317.0,6.02954476]
[1768386043026,0.09180629,3317.5,3317.0,6.7322488]
[1768386043224,0.09180629,3317.8,3317.0,6.7322488]
[1768386043450,0.09180629,3317.6,3317.0,7.1462488]
[1768386044056,0.09180629,3317.8,3317.0,11.15851677]
[1768386044265,0.27698051,3317.7,3317.0,11.15851677]
[1768386044441,0.09180629,3317.8,3317.0,11.15851677]
[1768386044751,0.2769904,3317.7,3317.0,11.15851677]
[1768386044953,0.09180629,3317.8,3317.0,11.15851677]
[1768386045160,0.09180629,3318.0,3317.1,0.99749559]
[1768386045458,0.09180629,3317.9,3317.1,2.00536781]
[1768386045955,0.09180629,3318.1,3317.2,0.99749559]
[1768386046126,0.09180629,3317.7,3317.2,0.99749559]
[1768386046324,0.07674332,3317.7,3317.3,6.02899948]
[1768386046526,0.09180629,3318.1,3317.3,6.02899948]
[1768386046756,0.09180629,3317.9,3317.3,9.04349922]
[1768386046936,0.09180629,3318.1,3317.3,9.04349922]
[1768386047259,0.09180629,3317.9,3317.3,9.04349922]
[1768386047558,0.09180629,3318.1,3317.3,9.04349922]
[1768386047725,0.09180629,3317.9,3317.3,9.04349922]
[1768386047926,0.09180629,3318.1,3317.3,9.04349922]
[1768386048126,0.09180629,3317.9,3317.3,9.04349922]
[1768386048347,0.09180629,3318.1,3317.3,9.04349922]
[1768386048870,0.09180629,3317.7,3317.3,6.02899948]
[1768386049159,0.09180629,3317.9,3317.3,6.02899948]
[1768386049331,0.09180629,3317.7,3317.3,6.02899948]
[1768386049945,0.09180629,3317.9,3317.3,6.02899948]
[1768386050146,0.09180629,3317.7,3317.3,6.02899948]
[1768386050349,0.09180629,3317.7,3317.1,6.02936298]
[1768386050546,0.09180629,3317.9,3317.1,6.02936298]
[1768386050753,0.09180629,3317.7,3317.1,6.02936298]
[1768386050957,0.09180629,3317.9,3317.1,9.04404447]
[1768386051156,0.63902851,3317.8,3317.1,9.98984892]
[1768386051462,0.002,3317.4,3317.2,0.99749559]
[1768386051643,0.09180629,3318.4,3317.8,0.1225423]
[1768386051958,0.09180629,3318.2,3317.8,0.1225423]
[1768386052262,0.09180629,3318.4,3317.8,0.1225423]
[1768386052468,0.09180629,3318.2,3317.9,6.0279092]
[1768386052761,0.09180629,3318.6,3317.9,6.0279092]
[1768386052762,0.09180629,3318.6,3318.0,0.99749559]
[1768386053362,0.09180629,3318.4,3318.0,0.99749559]
[1768386054160,0.09180629,3318.4,3317.9,7.02540479]
[1768386054354,0.09180629,3318.6,3317.9,7.02540479]
[1768386054662,0.09180629,3318.6,3318.0,0.99749559]
[1768386054968,0.09180629,3318.4,3318.0,0.99749559]
[1768386055133,0.09180629,3318.6,3318.0,0.99749559]
[1768386055442,0.09180629,3318.4,3318.0,0.99749559]
[1768386056655,0.09180629,3318.4,3318.1,3.01377294]
[1768386056855,0.09180629,3318.6,3318.1,7.02504147]
[1768386057057,0.09180629,3318.4,3318.1,4.01126853]
[1768386057367,0.09180629,3318.2,3318.1,0.99749559]
[1768386057579,0.09180629,3318.2,3317.5,0.414]
[1768386057580,0.09180629,3317.8,3317.5,0.414]
[1768386057888,0.09180629,3317.8,3316.4,3.01524588]
[1768386057889,0.09180629,3317.6,3317.2,0.414]
[1768386058051,0.09180629,3317.6,3317.4,3.01440645]
[1768386058254,0.0758063,3317.8,3317.1,0.414]
[1768386058582,0.09180629,3318.0,3317.2,3.01459061]
[1768386058887,0.09180629,3318.0,3317.2,9.04377183]
[1768386059186,0.09180629,3318.1,3317.2,9.04377183]
[1768386059566,1.15503569,3318.1,3317.2,9.04377183]
[1768386059763,1.15503569,3318.1,3317.2,6.02918122]
[1768386059967,0.09180629,3317.8,3317.2,3.01459061]
[1768386060276,0.09180629,3317.8,3317.2,6.02918122]
[1768386060456,0.09180629,3317.6,3316.8,0.414]
[1768386060648,0.09180629,3317.4,3316.9,3.01486327]
[1768386061080,0.09180629,3317.2,3316.8,0.414]
[1768386061316,0.09180629,3318.5,3316.9,1.02764422]
[1768386061480,0.09180629,3318.3,3317.1,0.99749559]
[1768386061783,0.09180629,3318.6,3317.5,0.99749559]
[1768386061983,0.09180629,3318.6,3317.7,0.99749559]
[1768386062351,0.09180629,3318.4,3317.7,0.99749559]
[1768386062961,0.09180629,3318.4,3317.8,6.0280909]
[1768386064180,0.09380629,3318.8,3317.8,7.02558649]
[1768386064373,0.09180629,3318.6,3317.8,7.02558649]
[1768386064690,0.09180629,3318.6,3317.9,0.99749559]
[1768386064850,0.002,3318.2,3317.9,0.99749559]
[1768386065054,0.09180629,3318.1,3317.6,0.414]
[1768386065258,0.09180629,3317.7,3317.3,3.01447842]
[1768386065692,0.09180629,3317.6,3317.3,3.01447842]
[1768386065995,0.09180629,3317.9,3317.3,6.02897816]
[1768386066154,0.09180629,3317.7,3317.3,6.02897816]
[1768386066356,0.09180629,3317.3,3316.0,1.05881307]
[1768386066567,0.09180629,3317.3,3317.0,3.01471914]
[1768386066568,0.09066049,3317.3,3317.0,3.01471914]
[1768386066996,0.09066049,3317.3,3317.1,3.01467407]
[1768386067193,0.09180629,3317.5,3316.8,6.02990834]
[1768386067498,0.09059442,3317.3,3316.8,6.02990834]
[1768386067874,0.09180629,3317.5,3316.8,6.02990834]
[1768386068074,0.09180629,3317.3,3316.8,6.02990834]
[1768386068596,0.09180629,3317.5,3316.8,6.02869647]
[1768386068823,0.09180629,3317.3,3316.8,6.02869647]
[1768386069161,0.09180629,3317.5,3316.8,6.02869647]
[1768386069490,0.09180629,3318.1,3316.9,1.0889617]
[1768386069692,0.09180629,3317.9,3317.6,0.09180629]
[1768386070705,0.09180629,3318.2,3317.6,0.09180629]
[1768386070906,0.09380629,3318.5,3317.6,0.09180629]
[1768386071200,0.002,3318.5,3317.7,0.414]
[1768386071416,0.002,3318.5,3317.8,9.04213635]
[1768386071613,0.002,3318.5,3317.8,9.66770042]
[1768386072094,0.002,3318.5,3317.8,10.72651349]
[1768386072677,0.002,3318.5,3317.9,1.05881307]
[1768386072879,0.09180629,3318.0,3317.7,3.42812158]
[1768386073079,0.09180629,3318.1,3317.7,3.42812158]
[1768386073309,0.09180629,3318.5,3317.7,6.44225787]
[1768386073715,0.09180629,3318.7,3317.7,6.44225787]
[1768386073915,0.09180629,3318.5,3317.7,6.44225787]
[1768386074090,0.09180629,3318.3,3317.7,3.42812158]
[1768386074419,0.09180629,3318.1,3317.7,3.42813629]
[1768386074776,0.09180629,3317.9,3317.6,0.09180629]
[1768386075011,0.09180629,3318.1,3317.7,3.01412941]
[1768386075218,0.09180629,3317.9,3317.6,3.01419624]
[1768386075510,0.09180629,3317.9,3317.3,6.02899948]
[1768386075676,0.09180629,3317.9,3317.3,3.01449974]
[1768386075884,0.09180629,3317.7,3317.3,3.01449974]
[1768386077283,0.09180629,3317.7,3316.9,3.01486327]
[1768386077811,0.09180629,3317.7,3316.9,6.02972654]
[1768386079891,0.002,3318.2,3317.0,1.0492348]
[1768386080092,0.09180629,3318.3,3317.0,1.0492348]
[1768386081289,0.09180629,3318.3,3317.2,1.01908708]
[1768386081489,0.09180629,3318.3,3317.3,1.46323207]
[1768386082489,0.09180629,3318.1,3317.3,0.44414499]
[1768386082688,0.09180629,3317.9,3317.3,0.414]
[1768386083613,0.09180629,3317.9,3317.4,6.02881774]
[1768386084024,0.09180629,3318.1,3317.4,6.02881774]
[1768386088802,0.09180629,3318.3,3317.4,6.02881774]
[1768386088803,0.50680629,3318.5,3317.4,9.04322661]
[1768386089006,0.002,3318.5,3317.5,1.04923026]
[1768386089237,0.002,3319.1,3317.8,1.01908708]
[1768386089238,0.002,3318.8,3317.8,1.01908708]
[1768386089404,0.002,3318.8,3317.9,0.414]
[1768386089607,0.002,3318.8,3318.0,9.04159131]
[1768386090025,0.002,3318.8,3318.0,9.9846328]
[1768386090403,0.09180629,3318.7,3318.0,6.97076903]
[1768386090599,0.09180629,3318.7,3318.0,6.02772754]
[1768386091503,0.002,3318.2,3318.0,6.02772754]
[1768386091697,0.09180629,3318.5,3318.0,6.02772754]
[1768386091897,0.002,3318.5,3318.0,6.02772754]
[1768386092328,0.002,3318.5,3318.0,3.01386377]
[1768386094424,0.002,3318.5,3318.0,6.02772754]
[1768386096538,0.002,3318.5,3318.0,3.01386377]
[1768386096738,0.002,3318.5,3318.0,6.02772754]
[1768386096906,0.002,3318.5,3318.0,3.01386377]
[1768386097610,0.00078813,3318.5,3318.0,3.01386377]
[1768386098440,0.00078813,3318.5,3317.9,3.42793178]
[1768386098441,0.09180629,3318.2,3317.3,1.0586509]
[1768386098735,0.09180629,3317.6,3317.3,0.001]
[1768386098936,0.09180629,3317.4,3316.7,3.42902493]
[1768386099108,0.09180629,3317.4,3316.9,3.01478958]
[1768386099433,0.09180629,3317.4,3317.0,3.01476534]
[1768386099932,0.09180629,3317.4,3317.1,3.0146798]
[1768386100138,0.09180629,3317.4,3317.0,3.01473221]
[1768386100339,0.09180629,3317.4,3316.9,3.01485361]
[1768386100636,0.09180629,3317.6,3316.9,3.01485361]
[1768386100939,0.09180629,3317.6,3316.9,6.02971688]
[1768386101134,0.09180629,3317.8,3316.9,6.02971688]
[1768386101352,0.09180629,3317.6,3316.9,6.02971688]
[1768386102718,0.09180629,3317.6,3316.8,6.02990834]
[1768386103341,0.09180629,3317.8,3316.9,0.67898261]
[1768386103541,0.09180629,3317.6,3316.8,6.02990834]
[1768386104045,0.09180629,3317.4,3316.7,3.42900823]
[1768386104428,0.09180629,3317.4,3317.2,0.001]
[1768386106146,0.09259442,3318.5,3317.2,0.001]
[1768386106442,0.09180629,3318.2,3317.3,0.414]
[1768386106647,0.43025036,3318.2,3317.3,0.414]
[1768386107451,3.44394464,3318.2,3317.4,6.02881774]
[1768386107953,3.44394464,3318.2,3317.4,3.01440887]
[1768386109344,0.09180629,3318.0,3317.3,3.42847754]
[1768386110451,0.09180629,3317.6,3317.0,3.01470378]
[1768386110744,0.09180629,3317.7,3316.8,1.4716509]
[1768386110947,0.09180629,3317.5,3316.8,1.4716509]
[1768386111450,3.10602649,3317.7,3316.9,3.01486327]
[1768386112718,0.09180629,3317.5,3316.9,3.01486327]
[1768386113359,0.80384969,3318.6,3317.0,1.0576509]
[1768386113559,0.09180629,3318.7,3317.6,0.09180629]
[1768386113560,0.09180629,3318.5,3317.6,0.09180629]
[1768386113887,0.09180629,3318.8,3317.7,0.414]
[1768386114040,0.09180629,3318.1,3317.2,0.414]
[1768386115554,3.10558254,3318.1,3317.3,3.01449974]
[1768386115758,0.09180629,3318.1,3317.3,3.01449974]
[1768386115927,0.09180629,3318.1,3317.3,6.37184945]
[1768386116630,0.09180629,3317.9,3317.3,3.01449974]
[1768386117466,0.002,3318.5,3317.4,0.03014408]
[1768386117627,0.002,3318.5,3317.5,6.02863602]
[1768386119554,0.002,3318.5,3317.3,9.04349922]
[1768386119768,0.002,3318.5,3317.4,1.05151501]
[1768386120063,0.09180629,3318.3,3317.4,1.05151501]
[1768386120250,0.002,3318.5,3317.4,1.08165909]
[1768386120652,0.09180629,3318.0,3317.3,3.01449974]
[1768386120857,0.09180629,3318.0,3317.3,6.02899948]
[1768386121156,0.09180629,3318.0,3317.3,3.01449974]
[1768386121662,0.09180629,3318.0,3317.2,0.414]
[1768386121663,0.09180629,3317.8,3317.2,0.414]
[1768386122458,0.09180629,3317.8,3316.7,3.01496857]
[1768386122459,0.09180629,3317.6,3316.7,3.01496857]
[1768386122697,0.09180629,3317.6,3316.3,3.01535513]
[1768386122698,0.09180629,3317.2,3316.3,3.01535513]
[1768386122836,0.09180629,3317.2,3316.4,0.414]
[1768386123362,0.09180629,3317.2,3316.4,3.42927995]
[1768386123556,0.09180629,3317.2,3316.5,3.01517768]
[1768386123765,3.10639777,3317.2,3316.5,3.01517768]
[1768386123945,0.09180629,3318.1,3316.6,1.0576509]
[1768386124269,0.99047835,3318.3,3316.5,6.03040457]
[1768386124270,0.37093701,3318.0,3316.8,1.0576509]
[1768386124479,0.09180629,3318.0,3316.9,0.414]
[1768386124768,0.09180629,3317.8,3316.9,0.414]
[1768386125073,0.09180629,3317.7,3316.9,0.414]
[1768386125250,0.09180629,3317.7,3316.9,1.52402435]
[1768386125632,0.09180629,3317.7,3317.0,3.01477238]
[1768386125832,3.01405932,3317.8,3317.0,3.01477238]
[1768386126032,0.09180629,3317.7,3317.0,3.01477238]
[1768386126237,0.09180629,3317.7,3316.9,0.414]
[1768386126470,0.09180629,3317.5,3316.9,0.414]
[1768386127677,0.09059443,3317.5,3316.9,0.414]
[1768386127855,0.09180629,3317.3,3316.8,3.01495273]
[1768386128241,0.09180629,3317.1,3316.5,0.414]
[1768386128462,0.09180629,3317.1,3316.5,3.42915847]
[1768386128843,0.09180629,3317.3,3316.5,3.42915847]
[1768386129046,0.09180629,3317.1,3316.5,3.42915847]
[1768386129772,0.09180629,3317.1,3316.5,0.414]
[1768386129967,3.10650144,3317.1,3316.5,3.42921801]
[1768386130268,3.01462583,3317.2,3316.5,3.42922463]
[1768386130464,3.01462583,3317.2,3316.8,0.001]
[1768386130777,0.09180629,3317.1,3316.8,0.001]
[1768386131343,0.09180629,3316.9,3314.9,2.71167891]
[1768386131649,0.09180629,3316.9,3315.0,6.0331825]
[1768386131650,1.18375642,3316.2,3315.0,6.0331825]
[1768386131850,0.09180629,3316.4,3315.1,1.14018935]
[1768386131851,0.413,3316.4,3315.1,1.14018935]
[1768386132053,0.413,3316.4,3315.2,0.71733719]
[1768386132450,1.09195013,3316.1,3314.9,0.01]
[1768386132684,1.09195013,3315.9,3314.9,0.01]
[1768386132892,0.09180629,3316.0,3314.9,0.01]
[1768386132893,1.09195013,3315.7,3314.9,0.01]
[1768386133060,1.09195013,3315.5,3314.9,0.01]
[1768386133389,1.09195013,3315.5,3314.3,3.43119668]
[1768386133554,1.09195013,3315.5,3314.4,0.34311967]
[1768386133880,0.09180629,3314.7,3314.4,0.34311967]
[1768386134079,0.09180629,3314.7,3313.7,0.414]
[1768386134295,0.09180629,3314.7,3314.2,3.01724683]
[1768386134455,0.09180629,3314.7,3314.0,3.01748674]
[1768386134655,0.09180629,3314.7,3314.1,3.0173928]
[1768386134878,0.09180629,3314.9,3313.8,0.03017683]
[1768386135090,0.09180629,3314.9,3314.4,3.01713041]
[1768386135666,3.10809949,3315.4,3314.4,3.01713041]
[1768386135965,0.09180629,3315.4,3314.6,3.01695528]
[1768386136170,0.09180629,3315.2,3314.5,3.01704076]
[1768386137095,0.09180629,3315.2,3314.4,3.01710208]
[1768386137264,0.09180629,3315.0,3314.4,3.01710208]
[1768386137460,0.09180629,3315.0,3314.5,0.34311021]
[1768386137755,0.09180629,3315.0,3314.5,3.36015142]
[1768386138682,3.10822793,3315.2,3314.5,3.36015142]
[1768386139092,0.09180629,3314.9,3314.3,3.43119116]
[1768386139405,1.10146795,3315.1,3314.4,3.01713354]
[1768386139700,1.10146795,3315.1,3314.3,0.414]
[1768386139701,1.10146795,3314.9,3314.5,3.01703619]
[1768386140082,1.00966166,3314.9,3314.4,3.01713734]
[1768386140287,1.00966166,3314.9,3314.4,3.66197299]
[1768386140509,4.11794892,3315.2,3314.4,6.67911033]
[1768386140821,0.09180629,3315.0,3314.4,6.67911033]
[1768386141174,0.09180629,3315.0,3314.4,3.66197299]
[1768386141402,1.10146795,3315.0,3314.4,3.66197299]
[1768386141998,1.10146795,3315.0,3314.4,6.67911033]
[1768386142198,1.00966166,3315.0,3314.5,0.70931103]
[1768386142393,0.09180629,3314.9,3314.4,3.01713734]
[1768386142593,1.10146795,3314.9,3314.4,3.01713734]
[1768386142897,0.09180629,3314.5,3314.3,0.414]
[1768386143094,0.09180629,3314.2,3313.5,0.03017956]
[1768386143296,1.08546796,3314.5,3313.6,3.01786576]
[1768386143602,0.09180629,3314.3,3313.7,0.34318658]
[1768386143805,0.09180629,3314.3,3313.6,3.01786576]
[1768386143973,0.09180629,3314.1,3313.6,3.01786576]
[1768386144175,1.10146795,3314.9,3313.6,3.01786576]
[1768386144402,0.09180629,3314.3,3313.6,6.03573152]
[1768386144993,0.09180629,3313.9,3313.5,0.414]
[1768386145189,0.09180629,3313.7,3312.9,0.0233687]
[1768386145387,0.09180629,3313.7,3313.2,3.43220311]
[1768386145593,1.10146795,3313.7,3313.2,3.43220311]
[1768386145909,1.10146795,3313.5,3312.9,0.32757107]
[1768386146107,0.09180629,3313.3,3312.7,0.414]
[1768386146411,0.09180629,3313.3,3312.8,3.01855422]
[1768386146599,1.10146795,3313.3,3312.8,3.01855422]
[1768386146797,1.10146795,3313.3,3312.7,3.43265655]
[1768386147407,1.10146795,3313.3,3312.8,3.0185431]
[1768386147605,1.10146795,3313.3,3311.5,1.0876094]
[1768386147606,0.09180629,3313.1,3312.0,3.01929552]
[1768386147786,1.10146795,3313.3,3311.5,1.0876094]
[1768386147787,1.07303376,3313.0,3312.3,3.4330347]
[1768386147988,1.05703377,3313.0,3312.3,3.4330347]
[1768386148307,1.00966166,3313.0,3312.3,6.4520849]
[1768386148507,0.09180629,3312.9,3312.3,6.4520849]
[1768386148712,1.10146795,3312.9,3312.3,3.4330347]
[1768386148912,1.00966166,3312.5,3311.7,0.414]
[1768386149923,1.00966166,3311.9,3311.1,3.02014436]
[1768386150134,1.00622756,3311.9,3311.2,3.02005315]
[1768386150297,1.10146795,3312.0,3311.3,0.34340532]
[1768386150616,1.10146795,3312.0,3311.1,3.02014279]
[1768386150617,1.10146795,3311.8,3311.1,3.02014279]
[1768386150802,1.10146795,3311.8,3310.8,3.02034405]
[1768386151117,1.10146795,3311.8,3310.5,0.45695592]
[1768386151118,1.00966166,3311.3,3310.5,0.45695592]
[1768386151458,1.00966166,3311.9,3310.5,0.45695592]
[1768386151627,0.09180629,3311.7,3311.0,3.02020884]
[1768386151783,1.00966166,3311.9,3311.1,6.04028155]
[1768386151984,1.00966166,3312.3,3311.1,9.50462735]
[1768386152228,0.09180629,3312.2,3311.1,9.47442591]
[1768386153092,0.09180629,3312.0,3311.1,6.45428155]
[1768386153622,0.09180629,3312.2,3311.1,6.45428155]
[1768386153623,0.09180629,3312.2,3311.1,9.47442591]
[1768386153785,1.10146795,3312.5,3311.2,0.97764468]
[1768386153991,0.09180629,3312.1,3311.2,0.97764468]
[1768386154313,1.00966166,3312.3,3311.3,6.03992388]
[1768386154496,0.09180629,3312.8,3312.3,0.11803029]
[1768386154697,0.09180629,3312.6,3311.7,0.414]
[1768386155020,0.09180629,3312.4,3311.7,0.414]
[1768386156316,0.09180629,3312.4,3311.8,6.039012]
[1768386156491,0.09180629,3312.4,3311.9,0.6453012]
[1768386157212,3.11040588,3312.8,3311.9,0.6453012]
[1768386157614,0.09180629,3312.8,3311.9,0.6453012]
[1768386158427,3.11041325,3312.8,3312.0,3.01932367]
[1768386158598,0.09180629,3312.8,3312.0,6.03864734]
[1768386158962,0.09180629,3312.8,3312.1,0.66839485]
[1768386159116,1.01948405,3313.6,3312.2,0.44519141]
[1768386159425,0.09180629,3313.5,3312.2,0.44519141]
[1768386160190,0.09180629,3313.6,3312.3,1.12877998]
[1768386160403,0.09180629,3313.6,3312.5,6.03773584]
[1768386160989,3.10967488,3313.6,3312.5,6.03773584]
[1768386161194,0.09180629,3313.6,3312.5,6.03773584]
[1768386161441,0.09180629,3314.0,3312.5,10.18538374]
[1768386161633,0.09180629,3314.0,3312.6,1.12877998]
[1768386161808,0.09180629,3314.0,3312.7,1.2983701]
[1768386162498,3.10932026,3314.0,3312.8,6.03718908]
[1768386162708,0.09180629,3314.0,3312.8,9.05578362]
[1768386162915,0.09180629,3314.0,3312.8,10.1845636]
[1768386163507,0.09180629,3314.0,3312.8,7.16596906]
[1768386163715,0.09180629,3314.0,3312.9,0.84643392]
[1768386163966,1.11129034,3314.4,3313.0,1.12877998]
[1768386164211,0.09180629,3314.3,3313.0,1.12877998]
[1768386164445,0.09380629,3314.6,3312.9,0.84643392]
[1768386164446,0.09380629,3314.6,3313.2,1.12877998]
[1768386164747,0.09380629,3314.6,3313.3,1.21460561]
[1768386164748,0.09180629,3314.4,3313.3,1.21460561]
[1768386165241,0.09380629,3314.6,3313.3,1.21460561]
[1768386165242,0.002,3314.6,3313.3,2.34338559]
[1768386165646,0.09380629,3314.9,3313.4,1.12877998]
[1768386165647,0.002,3314.9,3313.4,1.12877998]
[1768386165811,1.11129034,3315.6,3313.9,1.12877998]
[1768386166014,1.11129034,3315.6,3314.1,1.12877998]
[1768386166015,0.09180629,3315.4,3314.1,1.12877998]
[1768386166221,1.01948405,3315.6,3314.2,0.569378]
[1768386166548,0.002,3316.3,3314.5,1.12877998]
[1768386166846,0.002,3316.3,3314.4,12.06854936]
[1768386166847,0.09180629,3316.2,3315.6,0.11802788]
[1768386167046,0.09180629,3316.2,3315.6,0.53202788]
[1768386168421,3.10735404,3316.2,3315.6,0.53202788]
[1768386168638,0.3109354,3316.1,3315.6,0.53202788]
[1768386168951,0.09180629,3315.8,3314.8,4.14547843]
[1768386169123,0.09180629,3315.5,3314.9,0.414]
[1768386170539,0.09180629,3315.3,3314.9,0.414]
[1768386170770,6.12422377,3315.5,3314.6,3.01693434]
[1768386170963,0.09180629,3315.3,3314.6,3.01693434]
[1768386171678,0.09180629,3315.3,3314.8,3.01675009]
[1768386172048,0.09180629,3315.3,3314.7,3.01683897]
[1768386172438,0.09180629,3315.3,3314.5,3.43103637]
[1768386172439,0.09180629,3315.3,3314.6,3.01695528]
[1768386172942,0.09180629,3315.3,3314.6,2.53645528]
[1768386173184,0.47305455,3315.3,3314.6,2.53645528]
[1768386173340,3.48938315,3315.3,3314.6,2.53645528]
[1768386174377,0.47305455,3315.3,3314.6,2.53645528]
[1768386174779,0.47305455,3315.3,3314.6,5.55341056]
[1768386174988,0.47305455,3315.3,3313.4,3.01800085]
[1768386174989,1.01948405,3315.2,3313.3,0.79960561]
[1768386175268,0.09180629,3313.4,3312.3,1.12877998]
[1768386175451,0.09180629,3313.5,3312.3,1.12877998]
[1768386175646,0.09180629,3313.3,3312.4,0.15729714]
[1768386176368,0.09180629,3313.5,3312.4,0.15729714]
[1768386176669,0.09180629,3313.2,3312.2,0.414]
[1768386176842,0.09180629,3313.0,3312.2,0.414]
[1768386177038,3.01850342,3312.9,3312.2,0.414]
[1768386177448,0.09180629,3312.8,3312.0,0.001]
[1768386177851,0.09180629,3312.6,3312.0,0.001]
[1768386179073,3.01850342,3312.9,3312.0,0.001]
[1768386179275,1.11129034,3313.7,3312.0,0.001]
[1768386179276,0.413,3313.5,3312.1,1.12877998]
[1768386179448,0.09180629,3313.4,3312.1,1.12877998]
[1768386179953,0.09180629,3312.8,3312.0,0.34444322]
[1768386180271,0.09180629,3312.6,3312.0,0.34444322]
[1768386180473,0.09180629,3312.5,3312.0,0.001]
[1768386180674,0.09180629,3312.5,3311.3,1.12877998]
[1768386180875,0.09180629,3312.3,3311.4,0.414]
[1768386181047,6.0382827,3312.2,3311.4,0.414]
[1768386181243,0.09180629,3312.1,3311.4,0.414]
[1768386181552,0.09180629,3312.1,3311.4,3.43387012]
[1768386181756,0.09180629,3312.1,3311.4,3.43384871]
[1768386182074,0.09180629,3312.1,3311.4,0.414]
[1768386182454,0.09180629,3312.1,3311.4,3.43385637]
[1768386182660,3.11089746,3312.3,3311.4,3.43385637]
[1768386183060,0.09180629,3312.1,3311.4,0.414]
[1768386183566,0.09180629,3312.1,3311.4,3.43383892]
[1768386183763,0.09180629,3311.9,3311.4,0.414]
[1768386183963,0.09180629,3311.9,3310.8,4.14916511]
[1768386183964,0.09180629,3311.7,3310.8,1.12877998]
[1768386184168,0.09180629,3311.7,3310.9,3.43425882]
[1768386184365,0.09180629,3311.7,3310.5,0.48716283]
[1768386184366,0.09180629,3311.5,3310.5,0.45695592]
[1768386184565,0.09180629,3311.5,3310.6,0.414]
[1768386184769,0.09180629,3311.5,3310.7,3.02049941]
[1768386184965,0.09180629,3311.3,3310.5,0.87095592]
[1768386185169,0.09180629,3311.3,3310.6,3.02060049]
[1768386185370,0.09180629,3311.3,3308.7,14.5]
[1768386185371,0.09180629,3310.2,3309.8,0.06916581]
[1768386185571,0.09180629,3310.2,3308.2,3.02275568]
[1768386185572,1.12765026,3309.0,3307.0,1.03200923]
[1768386185782,0.09180629,3309.2,3307.0,1.03079386]
[1768386185783,0.09180629,3308.7,3307.0,1.03079386]
[1768386186097,0.50480629,3308.9,3307.1,0.414]
[1768386186098,0.09180629,3307.8,3307.1,0.414]
[1768386186317,0.09180629,3308.0,3307.1,0.44423797]
[1768386186460,0.09180629,3307.8,3306.7,0.03024163]
[1768386186657,0.09180629,3309.7,3306.9,1.03200923]
[1768386186966,0.09180629,3309.2,3307.1,1.03200923]
[1768386187169,1.19300501,3309.3,3307.2,15.21033554]
[1768386187352,1.19300501,3309.3,3307.5,1.03200923]
[1768386187353,6.20075832,3309.3,3307.5,1.03200923]
[1768386187553,6.82083415,3309.3,3307.6,0.01508287]
[1768386187754,9.84264435,3309.3,3307.6,0.01508287]
[1768386187983,1.03584397,3309.2,3307.5,0.01508287]
[1768386188294,1.03584397,3309.2,3307.3,0.414]
[1768386188475,1.12765026,3309.2,3307.2,6.0474117]
[1768386188681,1.03584397,3309.0,3307.3,1.01874117]
[1768386188876,1.13832946,3309.1,3307.4,1.04709759]
[1768386189050,0.77723687,3309.3,3307.5,13.12573559]
[1768386189051,0.15716104,3309.3,3307.5,13.12573559]
[1768386189254,0.15716104,3309.3,3307.6,0.01508287]
[1768386189456,0.09180629,3308.7,3307.5,3.02343159]
[1768386189648,1.12765026,3308.9,3307.1,0.414]
[1768386189880,1.12765026,3308.9,3307.4,3.02351266]
[1768386190106,1.12765026,3308.9,3307.1,0.414]
[1768386190396,1.12765026,3308.7,3307.1,0.414]
[1768386190700,1.03584397,3308.7,3307.4,3.0235036]
[1768386190913,12.244504,3309.3,3307.5,0.01508973]
[1768386190914,6.20083252,3309.3,3307.5,0.01508973]
[1768386191412,0.15716104,3309.3,3307.6,6.04668036]
[1768386191686,0.09180629,3309.1,3307.7,0.414]
[1768386191894,0.09180629,3308.7,3307.7,0.414]
[1768386192076,0.09180629,3308.7,3307.2,3.02363205]
[1768386192388,0.09180629,3308.5,3307.6,0.414]
[1768386192586,0.09180629,3308.3,3307.6,0.414]
[1768386193088,1.03584397,3309.0,3307.6,0.414]
[1768386193089,1.12765026,3309.5,3307.6,0.414]
[1768386193385,6.04412208,3309.0,3307.7,3.02324878]
[1768386193578,0.67651847,3308.9,3307.7,3.02324878]
[1768386193782,0.67651847,3308.9,3307.7,6.04649756]
[1768386194283,3.02187839,3309.2,3307.7,6.06158135]
[1768386194487,6.04375678,3309.2,3307.7,6.04649756]
[1768386194789,0.09180629,3309.1,3307.7,6.04649756]
[1768386195388,6.04412208,3309.0,3307.7,6.04649756]
[1768386195588,3.02195382,3309.2,3307.8,1.03200923]
[1768386195757,3.02195382,3309.2,3307.9,2.04218479]
[1768386195960,3.02195382,3309.2,3308.0,1.03200923]
[1768386196390,0.03777462,3309.1,3308.0,1.03200923]
[1768386196690,0.03777462,3309.1,3307.7,3.02324878]
[1768386196691,0.09180629,3308.9,3307.7,3.02324878]
[1768386196862,0.09180629,3308.9,3307.8,0.415]
[1768386197058,0.09180629,3308.6,3307.8,0.415]
[1768386197274,0.09180629,3308.2,3307.4,0.415]
[1768386197464,6.04576644,3308.1,3307.4,0.415]
[1768386197854,0.09180629,3307.9,3307.5,0.415]
[1768386198068,0.09180629,3307.9,3307.4,0.415]
[1768386198489,0.09180629,3307.9,3307.2,0.003]
[1768386198786,6.65952371,3308.1,3307.3,3.43860876]
[1768386198787,3.02288322,3308.1,3307.3,3.43860876]
[1768386199190,3.02288322,3308.1,3306.6,1.03200923]
[1768386199191,1.25356213,3308.6,3304.6,1.2823823]
[1768386199396,1.25356213,3308.6,3303.2,0.49621212]
[1768386199397,6.04649756,3307.7,3305.7,1.2823823]